Cogmind - Beta 14 @@@ ROGUE MODE // 2024.09.17 @ 14:12:43 Player: Zaros426 Result: Destroyed by C-17 Slicer with Blade Saw Performance ------------- Evolutions (2) 1000 Regions Visited (6) 1200 Robots Destroyed (83) 415 Value Destroyed (2668) 2668 Prototype IDs (40) 800 Alien Tech Used (0) 0 Bonus (544) 544 TOTAL SCORE: 6627 Bonus ------- High Alert Combat Kills 107 Follower Combat Kills 7 Entered Garrisons 200 Aligned with FarCom 300 Friendly Fire -70 Cogmind --------- Core Integrity 0/550 Matter 124/300 Energy 265/265 System Corruption 17% Temperature Cool (0) Movement Treading (320) Ox2 Location -8/Garrison Parts ------- > --- POWER (1) -------- Improved Ion Engine > --- PROPULSION (2) --- Light Treads > --- UTILITY (6) ------ Improved Heat Sink High-capacity Storage Unit > --- WEAPON (2) ------- Beam Rifle Gauss Rifle > --- INVENTORY (20) --- Improved Ion Engine Deuterium Engine Nuclear Core Wheel Improved Heat Sink Huge Storage Unit Large Battery (200) High-capacity Matter Pod (0) Structural Scanner Relay Coupler [NC] (26) Relay Coupler [Sentry] (18) Trap Reconfigurator Particle Gun AWS/Gauss Grenade Launcher Datajack Field Lobotomy Kit (5) Hammer Peak State ------------ > --- POWER ------------ Deuterium Engine > --- PROPULSION ------- Armored Treads Wheel > --- UTILITY ---------- High-capacity Storage Unit Visual Processing Unit Terrain Scan Processor Improved Targeting Computer Hardened Light Armor Plating Hardened Light Armor Plating > --- WEAPON ----------- AWS/Gauss > --- INVENTORY -------- Improved Ion Engine Deuterium Engine Nuclear Core Wheel Huge Storage Unit Large Battery High-capacity Matter Pod Structural Scanner Seismic Detector Trap Reconfigurator Gauss Rifle Gauss Rifle Gauss Rifle Gauss Rifle Grenade Launcher Grenade Launcher Datajack Field Lobotomy Kit [Rating: 39] Favorites ----------- Power Ion Engine Engine Ion Engine Propulsion Wheel Treads Light Treads Wheel Wheel Utility Visual Processing Unit Device Seismic Detector Storage High-capacity Storage Unit Processor Visual Processing Unit Hackware Hacking Suite Protection Hardened Light Armor Plating Weapon Light Cannon Energy Gun Beam Rifle Ballistic Gun Light Assault Rifle Ballistic Cannon Light Cannon Launcher Grenade Launcher Impact Weapon Hammer Special Melee Weapon Datajack Build | -11 -10 -10 -10 -9 -8 -8 ------- Run | Yrd Mat Min Exi Min Mat Gar Slots Evolved 4 | . . . . . 4 . Power . | . . . . . . . Propulsion . | . . . . . . . Utility 4 | . . . . . 4 . Weapon . | . . . . . . . Parts Attached 107 | 8 21 3 2 3 50 20 Power 7 | 1 2 . . . 3 1 Engine 7 | 1 2 . . . 3 1 Core . | . . . . . . . Reactor . | . . . . . . . Propulsion 22 | 2 5 2 . 1 8 4 Treads 12 | 2 1 . . 1 5 3 Leg . | . . . . . . . Wheel 10 | . 4 2 . . 3 1 Hover . | . . . . . . . Flight . | . . . . . . . Utility 23 | 1 4 . . . 14 4 Device 6 | . . . . . 4 2 Storage 7 | 1 3 . . . 2 1 Processor 3 | . 1 . . . 2 . Hackware 1 | . . . . . 1 . Protection 6 | . . . . . 5 1 Artifact . | . . . . . . . Weapon 55 | 4 10 1 2 2 25 11 Energy Gun 4 | . . . . . . 4 Energy Cannon . | . . . . . . . Ballistic Gun 29 | 4 5 . . . 18 2 Ballistic Cannon 6 | . 3 . 1 1 1 . Launcher 6 | . 1 1 . 1 . 3 Special Weapon . | . . . . . . . Impact Weapon 9 | . 1 . . . 6 2 Slashing Weapon . | . . . . . . . Piercing Weapon . | . . . . . . . Special Melee Weapon 1 | . . . 1 . . . Unidentified Prototypes 1 | . . . . . 1 . Parts Lost 20 | . 2 . . . 13 5 Power 2 | . . . . . 2 . Propulsion 4 | . 1 . . . 2 1 Utility 9 | . . . . . 6 3 Weapon 5 | . 1 . . . 3 1 Highest Loss Streak 7 | . 1 . . . 7 2 To Critical Strikes . | . . . . . . . Average Slot Usage (%) 92 | . 90 100 100 100 93 78 Engine 10 | . 10 14 14 14 8 8 Treads 9 | . 13 . . 6 9 10 Wheel 13 | . 14 28 28 21 7 7 Device 3 | . . . . . 4 12 Storage 10 | . 10 14 14 14 9 10 Processor 15 | . 12 14 14 14 24 . Hackware 1 | . . . . . . 9 Protection 4 | . . . . . 12 3 Ballistic Gun 11 | . 18 . . . 14 4 Ballistic Cannon 6 | . 6 22 14 16 . . Launcher 2 | . 2 5 2 7 . 2 Impact Weapon 1 | . 1 . . . 1 5 Special Melee Weapon 1 | . . . 11 3 . . Peak Build Rating 39 | 6 10 10 13 13 39 25 Average Rating 16 | 4 8 10 11 13 28 20 On Entrance 9 | . 4 10 10 13 13 17 Naked Turns . | . . . . . . . Heaviest Build 101 | 13 51 51 51 51 101 61 Greatest Support 40 | 40 40 20 20 20 40 40 Greatest Overweight (x) 10 | 2 4 2 2 5 10 5 Average Overweight (x) 2 | . 1 2 2 3 5 4 Largest Inventory Capacity 25 | 8 20 20 20 20 25 20 Average Capacity 17 | 5 12 20 20 20 20 20 Most Carried 20 | 5 18 19 20 20 20 20 Average Carried 15 | 2 9 18 19 20 18 16 Final Capacity 20 | 5 20 20 20 20 20 20 Final Carried 20 | 5 17 19 20 20 18 19 Class Distribution -------------------- 87% | Mutant 6% | Scavenger-Mutant 4% | Skirmisher Dominant Class ---------------- Mutant | -10/Materials Mutant | -10/Mines Mutant | -10/Exiles Mutant | -9/Mines Mutant | -8/Materials Scavenger-Mutant | -8/Garrison Resources | -11 -10 -10 -10 -9 -8 -8 ----------- Run | Yrd Mat Min Exi Min Mat Gar Matter Collected 2552 | 323 716 181 . 124 1028 180 Remotely . | . . . . . . . Salvage Created 2809 | 122 763 111 . 179 1338 296 Parts 168 | 7 56 8 . 8 74 15 Haulers Intercepted 2 | . 1 . . . 1 . Recyclers Shooed 1 | . 1 . . . . . Parts Field Recycled . | . . . . . . . Retrieved Matter . | . . . . . . . Parts Self-Destructed . | . . . . . . . Prevented . | . . . . . . . Kills | -11 -10 -10 -10 -9 -8 -8 ------- Run | Yrd Mat Min Exi Min Mat Gar Combat Hostiles Destroyed 57 | . 19 3 . 1 24 10 Guns 42 | . 13 . . . 22 7 Cannons 5 | . 4 . . 1 . . AOE 8 | . 1 3 . . 1 3 Classes Destroyed 14 | 2 7 . . . 4 1 Worker 6 | . 1 1 . . 4 . Builder 1 | . 1 . . . . . Tunneler 2 | 2 . . . . . . Hauler 2 | . 1 . . . 1 . Recycler 6 | 1 1 1 . 2 1 . Operator 3 | . 1 . . . 2 . Watcher 6 | . 3 . . . 3 . Swarmer 14 | . 6 3 . 1 4 . Cutter 1 | . . . . . . 1 Grunt 34 | . 13 . . . 13 8 Brawler 1 | . . . . . 1 . Duelist 1 | . . . . . 1 . Sentry 5 | . . . . . 4 1 Hunter 1 | . . . . . 1 . Best Kill Streak 9 | 3 4 3 . 1 9 6 Combat Bots Only 6 | . 3 3 . 1 5 6 Max Kills in Single Turn 2 | 1 1 1 . 1 2 2 Gunslinging . | . . . . . . . Exploded 2 | . 1 1 . . 1 2 Melee . | . . . . . . . Uniques/NPCs Destroyed . | . . . . . . . Combat | -11 -10 -10 -10 -9 -8 -8 -------- Run | Yrd Mat Min Exi Min Mat Gar Hostile Shots Fired 355 | . 109 4 . 2 172 68 Missed 84 | . 35 2 . . 31 16 Damage Taken 3851 | . 735 12 . 32 2282 790 Core 696 | . 134 . . . 283 279 Absorbed by Shields 118 | . . . . . . 118 Core Remaining (%) 73 | 100 . . . 46 . . Volleys Fired 233 | 11 116 7 . 5 66 28 Largest 2 | 2 2 2 . 2 2 2 Hottest 121 | 40 70 70 . 65 70 121 Shots Fired 488 | 22 232 11 . 6 175 42 Gun 428 | 22 202 . . . 173 31 Cannon 41 | . 26 8 . 5 2 . Launcher 19 | . 4 3 . 1 . 11 Special . | . . . . . . . Kinetic 457 | 22 228 8 . 5 175 19 Thermal 12 | . . . . . . 12 Explosive 19 | . 4 3 . 1 . 11 Electromagnetic . | . . . . . . . Robot Hit Streak 30 | 6 9 3 . 3 30 16 Robot Miss Streak 6 | 2 6 2 . 1 3 4 Penetration Max 1 | . . . . . 1 . Secondary Targets 6 | . 1 . . . 3 2 Max Gunslinging Chain 1 | . 1 . . . 1 1 Autonomous 44 | . . . . . 44 . Shots Hit Robots 325 | 15 128 5 4 4 147 22 Core Hits 141 | 6 46 6 . 4 54 25 Critical Kills 2 | . 1 . . . 1 . Critical Parts Destroyed 5 | . 2 . . . 2 1 Critical Strikes 8 | . 3 . . . 4 1 Destroy 8 | . 3 . . . 4 1 Melee Attacks 37 | . 7 . 4 . 17 9 Impact 33 | . 7 . . . 17 9 Slashing . | . . . . . . . Piercing . | . . . . . . . Sneak Attacks 5 | . 1 . 4 . . . Combat Hostiles . | . . . . . . . Follow-up Attacks . | . . . . . . . Damage Inflicted 6118 | 151 1617 210 . 142 3120 878 Guns 4432 | 151 1053 . . . 2866 362 Cannons 387 | . 249 66 . 72 . . Explosions 1047 | . 219 144 . 70 98 516 Melee 245 | . 96 . . . 149 . Ramming 7 | . . . . . 7 . Kinetic 4744 | 151 1302 66 . 72 2866 287 Thermal 173 | . . . . . 98 75 Explosive 949 | . 219 144 . 70 . 516 Electromagnetic . | . . . . . . . Impact 245 | . 96 . . . 149 . Slashing . | . . . . . . . Piercing . | . . . . . . . Highest Corruption 17 | . . . . . 14 17 Average Corruption 6 | . . . . . 2 14 Corruption Purged . | . . . . . . . Corruption Blocked . | . . . . . . . Effects 30 | . . . . . 9 21 Message Errors 5 | . . . . . 2 3 Matter Fused 9 | . . . . . 1 8 Heat Flow Errors 6 | . . . . . 2 4 Energy Discharges 1 | . . . . . 1 . Parts Rejected 1 | . . . . . 1 . Data Loss (minor) 5 | . . . . . 1 4 Data Loss (major) 2 | . . . . . . 2 Alerts 1 | . . . . . 1 . Overload Shots . | . . . . . . . Overflow Damage 57 | . 35 2 . . 20 . Projectiles 8 | . 8 . . . . . Explosions 19 | . 5 2 . . 12 . Melee 30 | . 22 . . . 8 . Knockbacks 7 | . 4 1 . 2 . . Impact . | . . . . . . . Kinetic 5 | . 3 1 . 1 . . Secondary 2 | . 1 . . 1 . . Self-Inflicted Damage 163 | . . . . 17 82 64 Shots 6 | . . . . 1 1 4 Rammed 2 | . . . . . 2 . Targets Rammed 2 | . . . . . 2 . Kicked . | . . . . . . . Crushed . | . . . . . . . Highest Temperature 376 | . 33 9 . 3 206 376 Average Temperature 62 | . 9 6 . 2 56 164 Received Heat Transfer 1597 | . 285 . . . 882 430 Effects 3 | . . . . . 1 2 Shutdowns 1 | . . . . . . 1 Energy Bleed 2 | . . . . . 1 1 Siege Activations . | . . . . . . . Robots Corrupted 2 | . 1 . . . 1 . Combat Hostiles 2 | . 1 . . . 1 . Parts Fried 1 | . . . . . 1 . Impact Corruptions 3 | . 2 . . . 1 . Robots Melted . | . . . . . . . Combat Hostiles . | . . . . . . . Parts Melted . | . . . . . . . Heat Transferred 235 | . . . . . 50 185 Parts Sabotaged . | . . . . . . . Parts Stolen . | . . . . . . . Parts Stripped . | . . . . . . . Power Chain Reactions . | . . . . . . . Alert | -11 -10 -10 -10 -9 -8 -8 ------- Run | Yrd Mat Min Exi Min Mat Gar Peak Influence 551 | 15 489 238 . 45 398 551 Initial 232 | . 9 140 . . 13 232 Average 220 | 2 322 181 . 17 132 383 Maximum Alert Level 2 | . 2 1 . . 1 2 Low Security (%) 44 | 100 7 62 . 100 77 . Level 1 43 | . 69 37 . . 22 70 Level 2 12 | . 23 . . . . 29 Level 3 . | . . . . . . . Level 4 . | . . . . . . . Level 5 . | . . . . . . . High Security . | . . . . . . . Max Security . | . . . . . . . Squads Dispatched 12 | . 5 . . . 7 . Investigation 6 | . 5 . . . 1 . Extermination . | . . . . . . . Reinforcement 4 | . . . . . 4 . Assault . | . . . . . . . Garrison 2 | . . . . . 2 . Intercept . | . . . . . . . Searches Triggered . | . . . . . . . Construction Impeded 1 | . . . . . 1 . Haulers Reinforced . | . . . . . . . Active Scanning Responses . | . . . . . . . Cargo Convoy Interrupts . | . . . . . . . Stealth | -11 -10 -10 -10 -9 -8 -8 --------- Run | Yrd Mat Min Exi Min Mat Gar Distress Signals 4 | . 1 . . . 3 . Communications Jammed . | . . . . . . . Distress Signals . | . . . . . . . Times Spotted 94 | . 34 3 . 2 41 14 Peak Tracking Total 6 | . 5 3 . 3 5 6 Tactical Retreats 7 | . 4 . . 1 2 . Traps | -11 -10 -10 -10 -9 -8 -8 ------- Run | Yrd Mat Min Exi Min Mat Gar Traps Triggered 10 | . 3 . . . 1 6 Indirectly . | . . . . . . . Trap Hack Attempts . | . . . . . . . Triggered . | . . . . . . . Disarmed . | . . . . . . . Reprogrammed . | . . . . . . . Reused . | . . . . . . . Traps Extracted . | . . . . . . . Installed . | . . . . . . . Triggered . | . . . . . . . Machines | -11 -10 -10 -10 -9 -8 -8 ---------- Run | Yrd Mat Min Exi Min Mat Gar Machines Disabled 10 | . 1 . . . 6 3 Max in Single Turn 2 | . 1 . . . 2 2 Garrison Relay 1 | . . . . . . 1 Phase Generator 1 | . . . . . . 1 Machines Repaired . | . . . . . . . Machines Dismantled . | . . . . . . . Machines Sabotaged . | . . . . . . . Overloaded Fab Kills . | . . . . . . . Hacking | -11 -10 -10 -10 -9 -8 -8 --------- Run | Yrd Mat Min Exi Min Mat Gar Machines Accessed 19 | . 9 . 2 . 8 . Terminals 13 | . 7 . . . 6 . Fabricators . | . . . . . . . Repair Stations . | . . . . . . . Recycling Units 2 | . 2 . . . . . Scanalyzers 1 | . . . . . 1 . Garrison Access 1 | . . . . . 1 . Total Hacks 83 | . 24 . 24 . 35 . Successful 58 | . 17 . 24 . 17 . Failed 25 | . 7 . . . 18 . Catastrophic 4 | . . . . . 4 . Database Lockouts . | . . . . . . . Manual 51 | . 27 . 1 . 23 . Terminals 50 | . 22 . . . 28 . Fabricators . | . . . . . . . Repair Stations . | . . . . . . . Recycling Units 2 | . 2 . . . . . Scanalyzers 5 | . . . . . 5 . Garrison Access 2 | . . . . . 2 . Terminal Hacks 37 | . 6 . 24 . 7 . Record 23 | . . . 23 . . . Robot Schematic 2 | . 1 . . . 1 . Robot Analysis 6 | . 2 . . . 4 . Prototype ID Bank 1 | . . . . . 1 . Terminal Index 1 | . 1 . . . . . Unreport Threat 1 | . . . . . 1 . Locate Traps 1 | . 1 . . . . . Zone Layout 1 | . 1 . . . . . Derelict Proto ID Bank 1 | . . . 1 . . . Fabricator Hacks . | . . . . . . . Repair Station Hacks . | . . . . . . . Recycling Unit Hacks . | . . . . . . . Scanalyzer 3 | . . . . . 3 . Insert Component 2 | . . . . . 2 . Analyze 1 | . . . . . 1 . Garrison Access Hacks 1 | . . . . . 1 . Unlock Access 1 | . . . . . 1 . Unauthorized Hacks 17 | . 11 . . . 6 . Terminals 15 | . 9 . . . 6 . Assimilate 3 | . 2 . . . 1 . Botnet 2 | . 2 . . . . . Skim 10 | . 5 . . . 5 . Fabricators . | . . . . . . . Repair Stations . | . . . . . . . Recycling Units 2 | . 2 . . . . . Tunnel 2 | . 2 . . . . . Scanalyzers . | . . . . . . . Garrison Access . | . . . . . . . Data Cores Recovered . | . . . . . . . Used . | . . . . . . . Hacking Detections 15 | . 7 . . . 8 . Full Trace Events 2 | . 1 . . . 1 . Feedback Events . | . . . . . . . Feedback Blocked . | . . . . . . . Robot Schematics Acquired 2 | . 1 . . . 1 . Robots Built . | . . . . . . . Authchips . | . . . . . . . Time . | . . . . . . . Total Robot Build Rating . | . . . . . . . Part Schematics Acquired 1 | . . . . . 1 . Parts Built . | . . . . . . . Authchips . | . . . . . . . Time . | . . . . . . . Total Part Build Rating . | . . . . . . . Parts Repaired . | . . . . . . . Time . | . . . . . . . Parts Recycled . | . . . . . . . Recycled Matter . | . . . . . . . Retrieved Matter . | . . . . . . . Retrieved Components . | . . . . . . . Parts Scanalyzed 1 | . . . . . 1 . Part Schematics Acquired 1 | . . . . . 1 . Parts Damaged . | . . . . . . . Bothacking | -11 -10 -10 -10 -9 -8 -8 ------------ Run | Yrd Mat Min Exi Min Mat Gar Used RIF Installer . | . . . . . . . Robots Hacked 4 | . . . 4 . . . Non-combat 3 | . . . 3 . . . Combat 1 | . . . 1 . . . Robot Hacks Applied 4 | . . . 4 . . . parse_system 4 | . . . 4 . . . Relay Couplers Released 3 | . . . . . . 3 Machine Destruction 3 | . . . . . . 3 Fabnet Peak Effective % . | . . . . . . . Robots Rewired . | . . . . . . . Allies Hacked . | . . . . . . . Hacks Repelled . | . . . . . . . Allies | -11 -10 -10 -10 -9 -8 -8 -------- Run | Yrd Mat Min Exi Min Mat Gar Total Allies 4 | . 1 . . 2 1 . Largest Group 2 | . 1 . . 2 1 . Highest-Rated Group 45 | . 10 . . 45 10 . Highest-Rated Ally 31 | . 10 . . 31 10 . Total Orders 6 | . 2 . . . 4 . STAY 3 | . 1 . . . 2 . FOLLOW 3 | . 1 . . . 2 . Ally Attacks 6 | . . . . 6 . . Total Damage 65 | . . . . 65 . . Kills 1 | . . . . 1 . . Allies Corrupted . | . . . . . . . Allies Melted . | . . . . . . . Intel | -11 -10 -10 -10 -9 -8 -8 ------- Run | Yrd Mat Min Exi Min Mat Gar Robot Analysis Total 6 | . 2 . . . 4 . Derelict Logs Recovered 3 | . . 1 . 2 . . Drone Launches . | . . . . . . . Drone Recoveries . | . . . . . . . Exploration | -11 -10 -10 -10 -9 -8 -8 ------------- Run | Yrd Mat Min Exi Min Mat Gar Turns Passed 4314 | 96 1416 245 299 373 1377 508 Spaces Moved 2389 | 56 910 203 259 274 501 186 Core 308 | 41 267 . . . . . Treads 226 | 15 145 . . . 30 36 Legs . | . . . . . . . Wheels 1855 | . 498 203 259 274 471 150 Hover . | . . . . . . . Flight . | . . . . . . . Fastest Speed 50 | 50 50 110 110 110 155 140 Average Speed 128 | 86 103 110 110 127 176 182 Slowest Speed 400 | 160 240 110 110 155 400 400 Overloaded Moves . | . . . . . . . Propulsion Burnouts . | . . . . . . . Robots Hopped . | . . . . . . . Cave-ins Triggered . | . . . . . . . Exploration Rate (%) 47 | 4 99 30 65 64 47 23 Regions Visited 6 Branch Regions 3 Pre-discovered Areas 5 | . 2 2 1 . . . Known Exits Taken 1 | . . . . . 1 . Unknown Exits Taken 5 | 1 1 1 1 1 . . Scrap Searched 2 | . . . . 2 . . Spaces Dug 10 | . 1 . . . 7 2 Terrain Destroyed 199 | . 24 19 . 7 64 85 Melee 10 | . 1 . . . 7 2 Projectile 19 | . . . . . 19 . AOE 169 | . 23 19 . 7 37 83 Terrain Rammed . | . . . . . . . Walls Destroyed . | . . . . . . . Machines Disabled . | . . . . . . . Actions | -11 -10 -10 -10 -9 -8 -8 --------- Run | Yrd Mat Min Exi Min Mat Gar Total 3139 | 80 1169 212 271 291 825 291 Wait 258 | . 79 . 1 8 140 30 Move 2384 | 55 909 202 258 273 501 186 Hop . | . . . . . . . Pick Up 60 | 4 23 . 3 1 23 6 Fast Attach 19 | 6 5 . . . 6 2 Attach 32 | . 6 . . . 19 7 Detach 8 | 1 . . . . 5 2 Swap 56 | 2 10 3 2 3 25 11 Drop 40 | 1 14 . 3 1 21 . Fire 233 | 11 116 7 . 5 66 28 Melee 37 | . 7 . 4 . 17 9 Ram . | . . . . . . . Kick . | . . . . . . . Crush 2 | . . . . . 2 . Escape Stasis 10 | . . . . . . 10 Rewire . | . . . . . . . Trap . | . . . . . . . Miscellaneous . | . . . . . . . Route ------- -11/Scrapyard -10/Materials (discovered 5 exits: [*Mat x3] / [*Min] / Sub) -10/Mines (discovered 3 exits: [*Mat x2] / *Exi) -10/Exiles -9/Mines -8/Materials (discovered 4 exits: *Fac x3 / Gar) -8/Garrison History --------- Turn | Location | Event 17 | -11/Scrapyard | Discovered new exit (range 16) 97 | -11/Scrapyard | Entered Materials 230 | -10/Materials | Discovered new exit (range 7) 240 | -10/Materials | Discovered new exit (range 3) 307 | -10/Materials | Build established: Mutant 331 | -10/Materials | Discovered new exit (range 13) 776 | -10/Materials | Loaded intel: 2 recycling unit locations 856 | -10/Materials | Learned Storage trap positions 922 | -10/Materials | Discovered new exit (range 9) 928 | -10/Materials | Identified exit to Subcaves 928 | -10/Materials | Learned location of 1 exit from Materials 950 | -10/Materials | Core integrity fell below 50% 989 | -10/Materials | Loaded intel: 1 repair station location 1133 | -10/Materials | Learned Storage stockpile data 1513 | -10/Materials | Entered Mines 1524 | -10/Mines | Discovered new exit (range 5) 1528 | -10/Mines | Met a Derelict bent on vengeance 1572 | -10/Mines | Discovered new exit (range 13) 1717 | -10/Mines | Learned location of Zion (-7) 1723 | -10/Mines | Deemed a non-threat by the Exiles lab entrance 1723 | -10/Mines | Discovered new exit (range 5) 1739 | -10/Mines | Assembled infested the area 1758 | -10/Mines | Entered Exiles 1784 | -10/Exiles | Met 8R-AWN 1804 | -10/Exiles | Met EX-HEX 1865 | -10/Exiles | Met EX-BIN 1877 | -10/Exiles | Aligned with FarCom system 1878 | -10/Exiles | Given EX-Vault access code 1908 | -10/Exiles | Opened EX-Vault 1913 | -10/Exiles | Found Field Lobotomy Kit 1920 | -10/Exiles | Found AWS/Gauss 1926 | -10/Exiles | Found Trap Reconfigurator 1949 | -10/Exiles | Warned to stay clear of 0b10 Research branches 1977 | -10/Exiles | Met EX-DEC 2042 | -10/Exiles | Discovered new exit (range 14) 2057 | -10/Exiles | Stole three prototypes: Trap Reconfigurator, AWS/Gauss, Field Lobotomy Kit 2057 | -10/Exiles | Entered Mines 2247 | -9/Mines | Learned 2 Materials zone layouts 2411 | -9/Mines | Learned Materials terminal intel 2419 | -9/Mines | Discovered new exit (range 6) 2430 | -9/Mines | Entered Materials 2430 | -8/Materials | Evolved 4 slots: Utility x4 2431 | -8/Materials | Identified exit to Factory 2433 | -8/Materials | Loaded intel: 12 terminal locations 2863 | -8/Materials | Discovered exit to Factory (range 17) 3476 | -8/Materials | Garrison activated, responded to threat 3524 | -8/Materials | AWS/Gauss suddenly broke down 3617 | -8/Materials | Lost 6 parts (1p1n2u2w) 3732 | -8/Materials | Garrison activated, responded to threat 3769 | -8/Materials | System corruption reached 10% 3801 | -8/Materials | Core integrity fell below 50% 3807 | -8/Materials | Identified exit to Garrison 3807 | -8/Materials | Entered Garrison 3827 | -8/Garrison | Lost 7 parts (1p1n4u1w) 3905 | -8/Garrison | Phase Generator disabled 3967 | -8/Garrison | Triggered checkpoint 4167 | -8/Garrison | Garrison Relay disabled 4229 | -8/Garrison | Triggered checkpoint 4233 | -8/Garrison | Triggered checkpoint 4253 | -8/Garrison | Core integrity fell below 20% 4315 | -8/Garrison | Destroyed by C-17 Slicer with Blade Saw Last Messages --------------- 04271_ Power failure, Imp. Ion Engine shutdown. 04273_ Overheating: Energy bleed (-34). 04273_ G-47 Trooper destroyed. 04291_ Acquired 8 matter. 04294_ Acquired 20 matter. 04303_ Triggered Stasis Trap. 04303_ A bubble of rippling energy engulfs the area. 04303_ Field strength at 70. 04306_ Field strength at 40. 04307_ Field strength at 10. 04308_ Stasis field depleted. 04309_ KHE E,E7Q1XSKL J,EOILYB4BM=CMHCYQ:KW9 04309_ Seismic Detector destroyed. 04309_ System corrupted by crushing effect (+3). 04310_ Hacking Suite destroyed. 04310_ Slug penetrates C-17 Slicer. 04312_ Lgt. Treads severed. 04313_ Slug penetrates C-17 Slicer. 04313_ C-17 Slicer destroyed. 04313_ Switching to secondary target: C-17 Slicer. Map ----- +----------------------------------------------------+ | ???????????????????### # ###???????????????????? | | ??????????????????## ##??????????????????? | | ?????????????????## ##?????????????????? | | ?????????????????# # #?????????????????? | | ????????########## ##????????????????? | | ????????# ## #????????????????? | | ????????# #?????????????????? | | ????????# # ##????????????????? | | ????????### #### #????????????????? | | ??????????# #??## # #????????????????? | | ??????????# #???# # ##????????????????? | | ??????????# #???# ## # #?????????????????? | | ????####### #???## # ##?????????????????? | | ????# =^*########### ## ##??????????????????? | | ??### #####^ ####???????????????????? | | ??# #???# * #??????????????????????? | | ??# #???# ###### ##### #??????????????????????? | | ??# ##### ###### #???# #??????????????????????? | | ??# #???# #??????????????????????? | | ??# ############ #???# #??????????????????????? | | ??### #??????????# #???# #??????????????????????? | | ????# #??????????# #???# #######????????????????? | | ????# #??????????# #???# ## %#????????????????? | | ????# ###????????# #??## ## =## ##???????????? | | ????# #"#????????# #### ^ = ##??????????? | | ##### "#????????# @ #??????? | | #????????##### c%= ######??????? | | ##### !"#????????????# /## ## #???????????? | | #???# #"#????????????##% ## #? #???????????? | | ????#####???????????? "???????????? | | ????????????????????# %= "Y??????????? | | ????????????????????# "???????????? | | ????????????????????#% "???????????? | | ????????????????????# # ## ## #???????????? | | ????????????????????# # ## #? #???????????? | | ????????????????????# # ? ?? ???????????? | | ????????????????????#? ? ?? ??????????? | | ??????????????????????# ? ???????????????? | | ??????????????????????# #?""""##???????????????? | | ?????????????????????? ??ggg??????????????????? | | ??????????????????????? ???????????????????????? | | ?????????????????????????????????????????????????? | | ?????????????????????????????????????????????????? | | ?????????????????????????????????????????????????? | | ?????????????????????????????????????????????????? | | ?????????????????????????????????????????????????? | | ?????????????????????????????????????????????????? | | ?????????????????????????????????????????????????? | | ?????????????????????????????????????????????????? | | ?????????????????????????????????????????????????? | +----------------------------------------------------+ Best States ------------- Heat Dissipation 45 Energy Generation 14 Energy Capacity 275 Matter Stores 317 Matter Capacity 500 Sight Range 18 Terrain Scan Density 85 Armor Coverage 300 Evasion (%) 50 Targeting Accuracy 6 Recoil Reduction 4 Offensive Hacking 10 Item Schematics ----------------- Datajack | -8/Materials | Scanalyzed Robot Schematics ------------------ M-13 Machinist | -10/Materials | Hacked O-16 Technician | -8/Materials | Hacked Fabricated ------------ Nothing Alien Tech Used ----------------- None Achievements -------------- None Challenges ------------ None Game ------ Seed SmartbombAnalysisBrace Manual? 0 Play Time 00:48:16 Cumulative 93.3 hours Start 2024.09.17 @ 13:25:33 End 2024.09.17 @ 14:12:43 Sessions 1 Manual Loads 0 Difficulty Rogue Special Mode None Game No. 53 Rogue 53 Adventurer 0 Explorer 0 Win Type - Total 0 Types 0/0/0/0/0/0/0/0/0 Lore% 45 Gallery% 61 Achievement% 51 Wizard Run 0 Options --------- Layout 0 ASCII 0 Keyboard 0 Movement Mouse Keybinds 0 Fullscreen 1 Font 24/Smallcaps Map View 183x50 Zoom Use 0% Tactical HUD 1 Map Filters NONE Filters NONE Steam 0 RUN: 73a16bc9-cfec-45dc-9dc5-5815d5f4b6be